[Event "Titled Tuesday Blitz July 25 Early 2023"]
[White "Timmermans, Mark"]
[Black "Kuznetsova, Olga"]
[WhiteFideId "1026399"]
[BlackFideId "4191323"]
[WhiteElo "2731"]
[BlackElo "2513"]
[Result "1-0"]
[Round "4"]
[TimeControl "180+2"]
[Date "2023.07.25"]
[WhiteClock "0:00:40"]
[BlackClock "0:00:14"]
[Board "78"]

1. b4 {[%clk 0:02:59]}  e6 {[%clk 0:02:42]} 2. Bb2 {[%clk 0:02:58]}  Nf6 {[%clk 0:02:41]} 3. b5 {[%clk 0:02:58]}  a6 {[%clk 0:02:40]} 4. a4 {[%clk 0:02:58]}  axb5 {[%clk 0:02:39]} 5. axb5 {[%clk 0:02:59]}  Rxa1 {[%clk 0:02:38]} 6. Bxa1 {[%clk 0:03:00]}  d6 {[%clk 0:02:36]} 7. c4 {[%clk 0:03:00]}  Be7 {[%clk 0:02:27]} 8. e3 {[%clk 0:03:00]}  O-O {[%clk 0:02:27]} 9. Nf3 {[%clk 0:03:00]}  b6 {[%clk 0:02:26]} 10. Be2 {[%clk 0:03:01]}  Bb7 {[%clk 0:02:26]} 11. O-O {[%clk 0:03:01]}  Nbd7 {[%clk 0:02:26]} 12. d4 {[%clk 0:03:02]}  Ne4 {[%clk 0:02:22]} 13. Nc3 {[%clk 0:02:58]}  f5 {[%clk 0:02:22]} 14. Nxe4 {[%clk 0:02:58]}  Bxe4 {[%clk 0:02:21]} 15. Nd2 {[%clk 0:02:59]}  Bb7 {[%clk 0:02:21]} 16. Bf3 {[%clk 0:02:58]}  Qa8 {[%clk 0:02:19]} 17. Bc3 {[%clk 0:02:58]}  Bf6 {[%clk 0:02:16]} 18. Qb3 {[%clk 0:02:46]}  Bxf3 {[%clk 0:01:46]} 19. Nxf3 {[%clk 0:02:25]}  Kf7 {[%clk 0:01:44]} 20. Ra1 {[%clk 0:02:23]}  Qe4 {[%clk 0:01:43]} 21. Ra7 {[%clk 0:02:21]}  Rc8 {[%clk 0:01:40]} 22. h3 {[%clk 0:02:06]}  h6 {[%clk 0:01:37]} 23. Bb4 {[%clk 0:02:01]}  Be7 {[%clk 0:01:28]} 24. Nd2 {[%clk 0:02:00]}  Qh4 {[%clk 0:01:24]} 25. Qd3 {[%clk 0:01:56]}  Qf6 {[%clk 0:01:05]} 26. Bc3 {[%clk 0:01:51]}  Qg6 {[%clk 0:01:05]} 27. Nf3 {[%clk 0:01:41]}  Nf6 {[%clk 0:01:02]} 28. Nd2 {[%clk 0:01:29]}  Ne4 {[%clk 0:00:55]} 29. Nxe4 {[%clk 0:01:29]}  fxe4 {[%clk 0:00:56]} 30. Qe2 {[%clk 0:01:29]}  Qf5 {[%clk 0:00:52]} 31. f3 {[%clk 0:01:22]}  exf3 {[%clk 0:00:51]} 32. Qxf3 {[%clk 0:01:22]}  Qxf3 {[%clk 0:00:43]} 33. gxf3 {[%clk 0:01:23]}  Bf6 {[%clk 0:00:43]} 34. Bb4 {[%clk 0:01:21]}  Ke7 {[%clk 0:00:37]} 35. Kf2 {[%clk 0:01:17]}  Kd7 {[%clk 0:00:37]} 36. Ke2 {[%clk 0:01:15]}  Be7 {[%clk 0:00:24]} 37. Kd3 {[%clk 0:01:10]}  Rf8 {[%clk 0:00:24]} 38. f4 {[%clk 0:01:10]}  g5 {[%clk 0:00:24]} 39. fxg5 {[%clk 0:01:09]}  hxg5 {[%clk 0:00:25]} 40. c5 {[%clk 0:00:56]}  dxc5 {[%clk 0:00:24]} 41. dxc5 {[%clk 0:00:57]}  bxc5 {[%clk 0:00:25]} 42. Ba5 {[%clk 0:00:55]}  Bd6 {[%clk 0:00:22]} 43. b6 {[%clk 0:00:52]}  Kc6 {[%clk 0:00:21]} 44. bxc7 {[%clk 0:00:48]}  Rc8 {[%clk 0:00:21]} 45. Kc4 {[%clk 0:00:43]}  Bxc7 {[%clk 0:00:17]} 46. Rxc7+ {[%clk 0:00:37]}  Rxc7 {[%clk 0:00:18]} 47. Bxc7 {[%clk 0:00:38]}  Kxc7 {[%clk 0:00:18]} 48. Kxc5 {[%clk 0:00:39]}  Kd7 {[%clk 0:00:19]} 49. e4 {[%clk 0:00:40]}  Ke7 {[%clk 0:00:17]} 50. e5 {[%clk 0:00:40]}  Kd7 {[%clk 0:00:14]} 51. Kb6 {[%clk 0:00:40]} 1-0


[Site "https://www.chess.com"]

[Event "Titled Tuesday Blitz July 25 Early 2023"]
[White "Mayank Chakraborty"]
[Black "NigelDwarf"]
[WhiteFideId "25659766"]
[WhiteElo "2725"]
[BlackElo "2512"]
[Result "1-0"]
[Round "4"]
[TimeControl "180+2"]
[Date "2023.07.25"]
[WhiteClock "0:00:49"]
[BlackClock "0:00:07"]
[Board "80"]

1. Nf3 {[%clk 0:03:00]}  Nf6 {[%clk 0:02:58]} 2. b3 {[%clk 0:03:00]}  g6 {[%clk 0:02:53]} 3. Bb2 {[%clk 0:03:00]}  Bg7 {[%clk 0:02:52]} 4. e3 {[%clk 0:03:01]}  O-O {[%clk 0:02:52]} 5. Be2 {[%clk 0:03:01]}  d6 {[%clk 0:02:49]} 6. O-O {[%clk 0:03:01]}  e5 {[%clk 0:02:49]} 7. d4 {[%clk 0:03:02]}  e4 {[%clk 0:02:46]} 8. Nfd2 {[%clk 0:03:02]}  d5 {[%clk 0:02:46]} 9. c4 {[%clk 0:03:03]}  c6 {[%clk 0:02:47]} 10. Nc3 {[%clk 0:03:02]}  h5 {[%clk 0:02:42]} 11. h3 {[%clk 0:02:59]}  Bf5 {[%clk 0:02:36]} 12. b4 {[%clk 0:02:59]}  Nbd7 {[%clk 0:02:31]} 13. b5 {[%clk 0:02:55]}  Re8 {[%clk 0:02:29]} 14. a4 {[%clk 0:02:51]}  Nf8 {[%clk 0:02:25]} 15. a5 {[%clk 0:02:50]}  a6 {[%clk 0:02:25]} 16. bxc6 {[%clk 0:02:48]}  bxc6 {[%clk 0:02:25]} 17. cxd5 {[%clk 0:02:48]}  cxd5 {[%clk 0:02:25]} 18. Nb3 {[%clk 0:02:45]}  Ne6 {[%clk 0:02:19]} 19. Na4 {[%clk 0:02:44]}  h4 {[%clk 0:02:16]} 20. Nac5 {[%clk 0:02:39]}  Ng5 {[%clk 0:02:16]} 21. Re1 {[%clk 0:02:25]}  Bxh3 {[%clk 0:01:45]} 22. gxh3 {[%clk 0:02:19]}  Nxh3+ {[%clk 0:01:44]} 23. Kg2 {[%clk 0:02:17]}  Qc8 {[%clk 0:01:37]} 24. Rh1 {[%clk 0:02:16]}  Nxf2 {[%clk 0:01:06]} 25. Kxf2 {[%clk 0:02:16]}  Qf5+ {[%clk 0:01:05]} 26. Ke1 {[%clk 0:02:16]}  Bh6 {[%clk 0:01:05]} 27. Qd2 {[%clk 0:02:00]}  Qg5 {[%clk 0:00:58]} 28. Kd1 {[%clk 0:01:48]}  Qg3 {[%clk 0:00:50]} 29. Bc1 {[%clk 0:01:32]}  h3 {[%clk 0:00:36]} 30. Qe1 {[%clk 0:01:30]}  Qg2 {[%clk 0:00:23]} 31. Qf1 {[%clk 0:01:29]}  Ng4 {[%clk 0:00:18]} 32. Bxg4 {[%clk 0:01:10]}  Qxg4+ {[%clk 0:00:16]} 33. Kc2 {[%clk 0:01:10]}  Rac8 {[%clk 0:00:13]} 34. Bd2 {[%clk 0:01:00]}  Rc6 {[%clk 0:00:08]} 35. Qxh3 {[%clk 0:00:59]}  Qe2 {[%clk 0:00:07]} 36. Qf1 {[%clk 0:00:49]} 1-0


[Site "https://www.chess.com"]

[Event "Titled Tuesday Blitz July 25 Early 2023"]
[White "Williams, Simon K"]
[Black "Taboas Rodriguez, Daniel"]
[WhiteFideId "404454"]
[BlackFideId "2208466"]
[WhiteElo "2713"]
[BlackElo "2497"]
[Result "1-0"]
[Round "4"]
[TimeControl "180+2"]
[Date "2023.07.25"]
[WhiteClock "0:00:25"]
[BlackClock "0:00:06"]
[Board "85"]

1. d4 {[%clk 0:02:59]}  Nf6 {[%clk 0:02:58]} 2. Bg5 {[%clk 0:02:57]}  d5 {[%clk 0:02:56]} 3. Nd2 {[%clk 0:02:56]}  Bf5 {[%clk 0:02:56]} 4. e3 {[%clk 0:02:55]}  Nbd7 {[%clk 0:02:55]} 5. Ngf3 {[%clk 0:02:54]}  h6 {[%clk 0:02:55]} 6. Bh4 {[%clk 0:02:51]}  e6 {[%clk 0:02:55]} 7. c4 {[%clk 0:02:41]}  Be7 {[%clk 0:02:51]} 8. Be2 {[%clk 0:02:39]}  O-O {[%clk 0:02:50]} 9. O-O {[%clk 0:02:39]}  c6 {[%clk 0:02:47]} 10. Qb3 {[%clk 0:02:34]}  Qb6 {[%clk 0:02:45]} 11. c5 {[%clk 0:02:34]}  Qxb3 {[%clk 0:02:45]} 12. axb3 {[%clk 0:02:35]}  a6 {[%clk 0:02:18]} 13. b4 {[%clk 0:02:34]}  g5 {[%clk 0:01:58]} 14. Bg3 {[%clk 0:02:34]}  Nh5 {[%clk 0:01:58]} 15. Bc7 {[%clk 0:02:16]}  Rfc8 {[%clk 0:01:51]} 16. Ba5 {[%clk 0:02:14]}  Nhf6 {[%clk 0:01:42]} 17. Ne1 {[%clk 0:02:05]}  e5 {[%clk 0:01:36]} 18. Bd3 {[%clk 0:01:58]}  Bxd3 {[%clk 0:01:33]} 19. Nxd3 {[%clk 0:01:58]}  e4 {[%clk 0:01:32]} 20. Ne1 {[%clk 0:01:50]}  Ne8 {[%clk 0:01:30]} 21. f3 {[%clk 0:01:49]}  f5 {[%clk 0:01:30]} 22. fxe4 {[%clk 0:01:48]}  fxe4 {[%clk 0:01:30]} 23. Nc2 {[%clk 0:01:47]}  Nc7 {[%clk 0:01:25]} 24. Bxc7 {[%clk 0:01:46]}  Rxc7 {[%clk 0:01:26]} 25. Nb3 {[%clk 0:01:44]}  Rb8 {[%clk 0:01:22]} 26. Rf5 {[%clk 0:01:35]}  Kg7 {[%clk 0:01:20]} 27. Raf1 {[%clk 0:01:34]}  Bf6 {[%clk 0:01:16]} 28. Na5 {[%clk 0:01:26]}  Rcc8 {[%clk 0:01:12]} 29. g4 {[%clk 0:00:55]}  Rf8 {[%clk 0:01:12]} 30. h3 {[%clk 0:00:55]}  Bd8 {[%clk 0:01:09]} 31. Na1 {[%clk 0:00:51]}  Bxa5 {[%clk 0:00:55]} 32. bxa5 {[%clk 0:00:51]}  Rxf5 {[%clk 0:00:55]} 33. Rxf5 {[%clk 0:00:51]}  Rf8 {[%clk 0:00:55]} 34. Rxf8 {[%clk 0:00:50]}  Kxf8 {[%clk 0:00:55]} 35. Nb3 {[%clk 0:00:44]}  Nf6 {[%clk 0:00:55]} 36. Nc1 {[%clk 0:00:39]}  h5 {[%clk 0:00:51]} 37. gxh5 {[%clk 0:00:39]}  Nxh5 {[%clk 0:00:52]} 38. Kg2 {[%clk 0:00:40]}  Kf7 {[%clk 0:00:52]} 39. Ne2 {[%clk 0:00:40]}  Kg6 {[%clk 0:00:49]} 40. Nc3 {[%clk 0:00:39]}  Kf5 {[%clk 0:00:47]} 41. Na4 {[%clk 0:00:39]}  Nf6 {[%clk 0:00:37]} 42. Nb6 {[%clk 0:00:39]}  g4 {[%clk 0:00:37]} 43. h4 {[%clk 0:00:32]}  Kg6 {[%clk 0:00:24]} 44. Nc8 {[%clk 0:00:32]}  Kh5 {[%clk 0:00:21]} 45. Kg3 {[%clk 0:00:32]}  Ne8 {[%clk 0:00:19]} 46. Nd6 {[%clk 0:00:32]}  Ng7 {[%clk 0:00:19]} 47. b4 {[%clk 0:00:30]}  Kg6 {[%clk 0:00:07]} 48. Kxg4 {[%clk 0:00:30]}  Kf6 {[%clk 0:00:06]} 49. h5 {[%clk 0:00:25]} 1-0


[Site "https://www.chess.com"]

[Event "Titled Tuesday Blitz July 25 Early 2023"]
[White "Koellner, Ruben Gideon"]
[Black "marik_spb"]
[WhiteFideId "12993093"]
[WhiteElo "2705"]
[BlackElo "2490"]
[Result "1-0"]
[Round "4"]
[TimeControl "180+2"]
[Date "2023.07.25"]
[WhiteClock "0:01:55"]
[BlackClock "0:00:06"]
[Board "88"]

1. d4 {[%clk 0:03:00]}  Nf6 {[%clk 0:02:59]} 2. Nf3 {[%clk 0:02:55]}  d5 {[%clk 0:02:55]} 3. e3 {[%clk 0:02:55]}  c5 {[%clk 0:02:52]} 4. c3 {[%clk 0:02:55]}  e6 {[%clk 0:02:49]} 5. Nbd2 {[%clk 0:02:54]}  Nbd7 {[%clk 0:02:46]} 6. Ne5 {[%clk 0:02:53]}  Bd6 {[%clk 0:02:38]} 7. f4 {[%clk 0:02:52]}  O-O {[%clk 0:02:36]} 8. Bd3 {[%clk 0:02:52]}  g6 {[%clk 0:02:09]} 9. Qf3 {[%clk 0:02:48]}  Nh5 {[%clk 0:01:53]} 10. h4 {[%clk 0:02:36]}  f5 {[%clk 0:01:38]} 11. g4 {[%clk 0:02:30]}  fxg4 {[%clk 0:01:20]} 12. Qxg4 {[%clk 0:02:29]}  Nxe5 {[%clk 0:01:18]} 13. dxe5 {[%clk 0:02:28]}  d4 {[%clk 0:00:56]} 14. exd6 {[%clk 0:02:10]}  dxe3 {[%clk 0:00:54]} 15. Ne4 {[%clk 0:02:09]}  Rxf4 {[%clk 0:00:52]} 16. Qg5 {[%clk 0:02:09]}  Qxg5 {[%clk 0:00:41]} 17. hxg5 {[%clk 0:02:07]}  c4 {[%clk 0:00:26]} 18. Bc2 {[%clk 0:02:07]}  b5 {[%clk 0:00:21]} 19. Bxe3 {[%clk 0:02:05]}  Rg4 {[%clk 0:00:19]} 20. Rxh5 {[%clk 0:02:01]}  gxh5 {[%clk 0:00:17]} 21. Nf6+ {[%clk 0:02:02]}  Kg7 {[%clk 0:00:18]} 22. Nxg4 {[%clk 0:02:02]}  hxg4 {[%clk 0:00:19]} 23. Kf2 {[%clk 0:02:02]}  Bb7 {[%clk 0:00:18]} 24. Kg3 {[%clk 0:01:59]}  Rf8 {[%clk 0:00:16]} 25. Bd4+ {[%clk 0:01:59]}  Kg8 {[%clk 0:00:16]} 26. Bf6 {[%clk 0:01:59]}  Rf7 {[%clk 0:00:14]} 27. Rd1 {[%clk 0:01:58]}  Rd7 {[%clk 0:00:13]} 28. Kxg4 {[%clk 0:01:56]}  a5 {[%clk 0:00:13]} 29. Kf4 {[%clk 0:01:56]}  b4 {[%clk 0:00:12]} 30. Ke5 {[%clk 0:01:56]}  Bf3 {[%clk 0:00:12]} 31. Rd2 {[%clk 0:01:56]}  Bg4 {[%clk 0:00:12]} 32. Ba4 {[%clk 0:01:56]}  Rf7 {[%clk 0:00:04]} 33. d7 {[%clk 0:01:55]}  Rf8 {[%clk 0:00:05]} 34. d8=Q {[%clk 0:01:55]}  Rxd8 {[%clk 0:00:06]} 35. Rxd8+ {[%clk 0:01:54]}  Kf7 {[%clk 0:00:06]} 36. Be8+ {[%clk 0:01:55]} 1-0


[Site "https://www.chess.com"]

[Event "Titled Tuesday Blitz July 25 Early 2023"]
[White "Cherniaiev, Tykhon"]
[Black "Urbina Perez, Juan Antonio"]
[WhiteFideId "14182360"]
[BlackFideId "2217368"]
[WhiteElo "2703"]
[BlackElo "2469"]
[Result "1-0"]
[Round "4"]
[TimeControl "180+2"]
[Date "2023.07.25"]
[WhiteClock "0:00:03"]
[BlackClock "0:00:05"]
[Board "90"]

1. Nf3 {[%clk 0:03:00]}  d5 {[%clk 0:02:58]} 2. b3 {[%clk 0:03:00]}  Bf5 {[%clk 0:02:55]} 3. Bb2 {[%clk 0:03:01]}  e6 {[%clk 0:02:55]} 4. g3 {[%clk 0:03:01]}  Nf6 {[%clk 0:02:55]} 5. Bg2 {[%clk 0:03:02]}  h6 {[%clk 0:02:55]} 6. d3 {[%clk 0:03:02]}  Bd6 {[%clk 0:02:55]} 7. Nbd2 {[%clk 0:03:03]}  Qe7 {[%clk 0:02:54]} 8. O-O {[%clk 0:03:03]}  O-O {[%clk 0:02:53]} 9. e4 {[%clk 0:02:50]}  dxe4 {[%clk 0:02:49]} 10. Nh4 {[%clk 0:02:37]}  Bh7 {[%clk 0:02:40]} 11. Nxe4 {[%clk 0:02:31]}  Nxe4 {[%clk 0:02:38]} 12. dxe4 {[%clk 0:02:32]}  e5 {[%clk 0:02:33]} 13. Nf5 {[%clk 0:02:30]}  Bxf5 {[%clk 0:02:32]} 14. exf5 {[%clk 0:02:31]}  c6 {[%clk 0:02:32]} 15. Qd3 {[%clk 0:01:54]}  Na6 {[%clk 0:02:28]} 16. Rad1 {[%clk 0:01:50]}  Rad8 {[%clk 0:02:26]} 17. Qc4 {[%clk 0:01:48]}  Nc7 {[%clk 0:02:21]} 18. Qg4 {[%clk 0:01:37]}  f6 {[%clk 0:02:13]} 19. Bc1 {[%clk 0:01:33]}  Kh8 {[%clk 0:02:10]} 20. Be4 {[%clk 0:01:27]}  Ba3 {[%clk 0:02:09]} 21. Be3 {[%clk 0:01:25]}  Bc5 {[%clk 0:02:08]} 22. Bc1 {[%clk 0:01:07]}  Ba3 {[%clk 0:02:05]} 23. Bd2 {[%clk 0:01:08]}  Nd5 {[%clk 0:01:58]} 24. Qh4 {[%clk 0:00:54]}  Bb4 {[%clk 0:01:50]} 25. Bc1 {[%clk 0:00:26]}  Ba3 {[%clk 0:01:40]} 26. Bd2 {[%clk 0:00:25]}  Bb4 {[%clk 0:01:39]} 27. Bxd5 {[%clk 0:00:25]}  Bxd2 {[%clk 0:01:32]} 28. Be6 {[%clk 0:00:25]}  Bb4 {[%clk 0:01:24]} 29. Qh5 {[%clk 0:00:21]}  Bc5 {[%clk 0:01:14]} 30. Kg2 {[%clk 0:00:18]}  Bb6 {[%clk 0:01:13]} 31. Qg6 {[%clk 0:00:16]}  Qe8 {[%clk 0:01:11]} 32. Qg4 {[%clk 0:00:16]}  Qe7 {[%clk 0:01:09]} 33. h4 {[%clk 0:00:16]}  Rxd1 {[%clk 0:01:07]} 34. Rxd1 {[%clk 0:00:16]}  Rd8 {[%clk 0:01:08]} 35. Rxd8+ {[%clk 0:00:14]}  Qxd8 {[%clk 0:01:09]} 36. Qg6 {[%clk 0:00:14]}  Qe7 {[%clk 0:01:07]} 37. g4 {[%clk 0:00:14]}  Bd8 {[%clk 0:01:05]} 38. Kf1 {[%clk 0:00:11]}  a6 {[%clk 0:01:02]} 39. g5 {[%clk 0:00:12]}  fxg5 {[%clk 0:00:55]} 40. hxg5 {[%clk 0:00:12]}  Qf8 {[%clk 0:00:11]} 41. f6 {[%clk 0:00:12]}  gxf6 {[%clk 0:00:08]} 42. gxh6 {[%clk 0:00:11]}  Be7 {[%clk 0:00:07]} 43. h7 {[%clk 0:00:06]}  Qg7 {[%clk 0:00:05]} 44. Qe8+ {[%clk 0:00:06]}  Kxh7 {[%clk 0:00:06]} 45. Qh5+ {[%clk 0:00:07]}  Qh6 {[%clk 0:00:05]} 46. Qf7+ {[%clk 0:00:07]}  Qg7 {[%clk 0:00:05]} 47. Bf5+ {[%clk 0:00:06]}  Kh8 {[%clk 0:00:05]} 48. Qh5+ {[%clk 0:00:05]}  Kg8 {[%clk 0:00:05]} 49. Qe8+ {[%clk 0:00:06]}  Qf8 {[%clk 0:00:05]} 50. Qg6+ {[%clk 0:00:05]}  Qg7 {[%clk 0:00:06]} 51. Qe8+ {[%clk 0:00:05]}  Qf8 {[%clk 0:00:06]} 52. Qd7 {[%clk 0:00:06]}  Kg7 {[%clk 0:00:06]} 53. Qxb7 {[%clk 0:00:06]}  Qd8 {[%clk 0:00:05]} 54. Qxc6 {[%clk 0:00:02]}  Qd1+ {[%clk 0:00:05]} 55. Kg2 {[%clk 0:00:03]}  Qg4+ {[%clk 0:00:05]} 56. Bxg4 {[%clk 0:00:03]} 1-0


[Site "https://www.chess.com"]

[Event "Titled Tuesday Blitz July 25 Early 2023"]
[White "Gubajdullin, Alexei"]
[Black "Dinu, Dumitru-Daniel"]
[WhiteFideId "4141202"]
[BlackFideId "1208403"]
[WhiteElo "2702"]
[BlackElo "2445"]
[Result "0-1"]
[Round "4"]
[TimeControl "180+2"]
[Date "2023.07.25"]
[WhiteClock "0:00:53"]
[BlackClock "0:00:21"]
[Board "91"]

1. d4 {[%clk 0:03:00]}  Nf6 {[%clk 0:02:59]} 2. Nf3 {[%clk 0:02:58]}  e6 {[%clk 0:02:57]} 3. Bf4 {[%clk 0:02:57]}  b6 {[%clk 0:02:47]} 4. e3 {[%clk 0:02:56]}  Bb7 {[%clk 0:02:47]} 5. Be2 {[%clk 0:02:56]}  g6 {[%clk 0:02:38]} 6. O-O {[%clk 0:02:53]}  Bg7 {[%clk 0:02:37]} 7. a4 {[%clk 0:02:52]}  a5 {[%clk 0:02:34]} 8. h3 {[%clk 0:02:51]}  O-O {[%clk 0:02:32]} 9. Nc3 {[%clk 0:02:36]}  d6 {[%clk 0:02:31]} 10. Nb5 {[%clk 0:02:35]}  Nbd7 {[%clk 0:02:26]} 11. Nd2 {[%clk 0:02:31]}  e5 {[%clk 0:02:14]} 12. Bg3 {[%clk 0:02:21]}  Re8 {[%clk 0:01:47]} 13. dxe5 {[%clk 0:02:13]}  Nxe5 {[%clk 0:01:44]} 14. Nc4 {[%clk 0:02:05]}  Ne4 {[%clk 0:01:36]} 15. Bf4 {[%clk 0:02:00]}  Nxc4 {[%clk 0:01:31]} 16. Bxc4 {[%clk 0:01:59]}  Bxb2 {[%clk 0:01:30]} 17. Rb1 {[%clk 0:01:54]}  Bg7 {[%clk 0:01:23]} 18. Bd5 {[%clk 0:01:53]}  Bxd5 {[%clk 0:01:10]} 19. Qxd5 {[%clk 0:01:53]}  Qd7 {[%clk 0:01:09]} 20. Rfd1 {[%clk 0:01:51]}  c6 {[%clk 0:01:03]} 21. Qc4 {[%clk 0:01:37]}  cxb5 {[%clk 0:01:02]} 22. Rxb5 {[%clk 0:01:34]}  Rac8 {[%clk 0:00:51]} 23. Qb3 {[%clk 0:01:26]}  Qc6 {[%clk 0:00:37]} 24. Rxb6 {[%clk 0:01:17]}  Qxc2 {[%clk 0:00:36]} 25. Rd5 {[%clk 0:01:13]}  Qxf2+ {[%clk 0:00:32]} 26. Kh2 {[%clk 0:01:12]}  Rc2 {[%clk 0:00:31]} 27. Qxc2 {[%clk 0:01:00]}  Qxc2 {[%clk 0:00:32]} 28. Rxa5 {[%clk 0:01:00]}  g5 {[%clk 0:00:27]} 29. Bg3 {[%clk 0:00:54]}  Nxg3 {[%clk 0:00:25]} 30. Kxg3 {[%clk 0:00:54]}  Rxe3+ {[%clk 0:00:25]} 31. Kg4 {[%clk 0:00:53]}  Qxg2+ {[%clk 0:00:21]} 0-1


[Site "https://www.chess.com"]

[Event "Titled Tuesday Blitz July 25 Early 2023"]
[White "Leon Oquendo, Jorge"]
[Black "Begunov, Konstantin"]
[WhiteFideId "3514803"]
[BlackFideId "4118510"]
[WhiteElo "2702"]
[BlackElo "2437"]
[Result "1-0"]
[Round "4"]
[TimeControl "180+2"]
[Date "2023.07.25"]
[WhiteClock "0:00:05"]
[BlackClock "0:00:05"]
[Board "92"]

1. d4 {[%clk 0:03:00]}  d5 {[%clk 0:02:59]} 2. c4 {[%clk 0:02:58]}  c6 {[%clk 0:03:00]} 3. Nf3 {[%clk 0:02:57]}  Nf6 {[%clk 0:03:01]} 4. e3 {[%clk 0:02:56]}  a6 {[%clk 0:03:01]} 5. b3 {[%clk 0:02:56]}  Bg4 {[%clk 0:03:00]} 6. Nbd2 {[%clk 0:02:54]}  e6 {[%clk 0:03:00]} 7. Bb2 {[%clk 0:02:52]}  Nbd7 {[%clk 0:03:00]} 8. h3 {[%clk 0:02:50]}  Bh5 {[%clk 0:03:00]} 9. Be2 {[%clk 0:02:49]}  Bd6 {[%clk 0:03:00]} 10. O-O {[%clk 0:02:48]}  Qe7 {[%clk 0:03:00]} 11. Ne5 {[%clk 0:02:40]}  Bxe2 {[%clk 0:03:00]} 12. Qxe2 {[%clk 0:02:40]}  O-O {[%clk 0:02:58]} 13. f4 {[%clk 0:02:38]}  c5 {[%clk 0:02:49]} 14. Nxd7 {[%clk 0:02:33]}  Nxd7 {[%clk 0:02:29]} 15. e4 {[%clk 0:02:28]}  cxd4 {[%clk 0:01:53]} 16. cxd5 {[%clk 0:02:12]}  Bc5 {[%clk 0:01:42]} 17. Qd3 {[%clk 0:02:10]}  exd5 {[%clk 0:01:36]} 18. e5 {[%clk 0:02:10]}  f6 {[%clk 0:01:30]} 19. Rae1 {[%clk 0:01:40]}  fxe5 {[%clk 0:01:27]} 20. fxe5 {[%clk 0:01:38]}  Rxf1+ {[%clk 0:01:27]} 21. Qxf1 {[%clk 0:01:23]}  Nxe5 {[%clk 0:01:16]} 22. Qf5 {[%clk 0:01:00]}  Re8 {[%clk 0:01:07]} 23. Kh1 {[%clk 0:01:00]}  Qf6 {[%clk 0:01:03]} 24. Qh5 {[%clk 0:00:54]}  Re7 {[%clk 0:01:01]} 25. Nf3 {[%clk 0:00:33]}  Nxf3 {[%clk 0:00:35]} 26. Qxd5+ {[%clk 0:00:32]}  Qf7 {[%clk 0:00:35]} 27. Qd8+ {[%clk 0:00:17]}  Qf8 {[%clk 0:00:35]} 28. Qd5+ {[%clk 0:00:18]}  Kh8 {[%clk 0:00:24]} 29. Rxe7 {[%clk 0:00:17]}  Qxe7 {[%clk 0:00:24]} 30. gxf3 {[%clk 0:00:17]}  Qe1+ {[%clk 0:00:14]} 31. Kg2 {[%clk 0:00:17]}  Qe2+ {[%clk 0:00:14]} 32. Kg3 {[%clk 0:00:18]}  Qe1+ {[%clk 0:00:13]} 33. Kg4 {[%clk 0:00:18]}  Qg1+ {[%clk 0:00:08]} 34. Kf4 {[%clk 0:00:17]}  Qh2+ {[%clk 0:00:08]} 35. Kg4 {[%clk 0:00:17]}  Qd6 {[%clk 0:00:06]} 36. Qxd6 {[%clk 0:00:17]}  Bxd6 {[%clk 0:00:07]} 37. Bxd4 {[%clk 0:00:17]}  Kg8 {[%clk 0:00:08]} 38. Kf5 {[%clk 0:00:17]}  Kf7 {[%clk 0:00:08]} 39. h4 {[%clk 0:00:17]}  g6+ {[%clk 0:00:09]} 40. Ke4 {[%clk 0:00:18]}  Ke6 {[%clk 0:00:09]} 41. Bf2 {[%clk 0:00:17]}  Be7 {[%clk 0:00:09]} 42. Bg3 {[%clk 0:00:17]}  Bf6 {[%clk 0:00:09]} 43. a4 {[%clk 0:00:16]}  h5 {[%clk 0:00:09]} 44. Bf2 {[%clk 0:00:16]}  Be7 {[%clk 0:00:08]} 45. Bg3 {[%clk 0:00:15]}  Bc5 {[%clk 0:00:08]} 46. Be1 {[%clk 0:00:15]}  Bg1 {[%clk 0:00:07]} 47. Bd2 {[%clk 0:00:14]}  Bc5 {[%clk 0:00:07]} 48. Bg5 {[%clk 0:00:15]}  Bd6 {[%clk 0:00:07]} 49. Be3 {[%clk 0:00:14]}  Bg3 {[%clk 0:00:07]} 50. Bg5 {[%clk 0:00:14]}  Bf2 {[%clk 0:00:07]} 51. Bd8 {[%clk 0:00:11]}  Bc5 {[%clk 0:00:07]} 52. Bg5 {[%clk 0:00:09]}  Bd6 {[%clk 0:00:07]} 53. Kd4 {[%clk 0:00:08]}  Kf5 {[%clk 0:00:06]} 54. Kd5 {[%clk 0:00:08]}  Bf4 {[%clk 0:00:05]} 55. Bd8 {[%clk 0:00:09]}  Bg3 {[%clk 0:00:04]} 56. b4 {[%clk 0:00:07]}  Bf4 {[%clk 0:00:04]} 57. b5 {[%clk 0:00:07]}  axb5 {[%clk 0:00:04]} 58. axb5 {[%clk 0:00:08]}  g5 {[%clk 0:00:05]} 59. hxg5 {[%clk 0:00:08]}  Bxg5 {[%clk 0:00:05]} 60. Bc7 {[%clk 0:00:09]}  h4 {[%clk 0:00:05]} 61. Bh2 {[%clk 0:00:07]}  Bf4 {[%clk 0:00:05]} 62. Bg1 {[%clk 0:00:08]}  h3 {[%clk 0:00:05]} 63. b6 {[%clk 0:00:06]}  Be3 {[%clk 0:00:05]} 64. Bxe3 {[%clk 0:00:05]} 1-0


[Site "https://www.chess.com"]

[Event "Titled Tuesday Blitz July 25 Early 2023"]
[White "Djokic, Mihailo"]
[Black "Pershina, Elena"]
[WhiteFideId "976440"]
[BlackFideId "24147516"]
[WhiteElo "2698"]
[BlackElo "2417"]
[Result "1-0"]
[Round "4"]
[TimeControl "180+2"]
[Date "2023.07.25"]
[WhiteClock "0:02:37"]
[BlackClock "0:02:09"]
[Board "95"]

1. e4 {[%clk 0:03:00]}  c5 {[%clk 0:03:00]} 2. Nf3 {[%clk 0:03:00]}  Nc6 {[%clk 0:03:00]} 3. d4 {[%clk 0:03:00]}  cxd4 {[%clk 0:03:01]} 4. Nxd4 {[%clk 0:03:01]}  Nf6 {[%clk 0:03:02]} 5. Nc3 {[%clk 0:03:01]}  e5 {[%clk 0:03:02]} 6. Ndb5 {[%clk 0:03:02]}  d6 {[%clk 0:03:02]} 7. Bg5 {[%clk 0:03:03]}  Be7 {[%clk 0:03:03]} 8. Bxf6 {[%clk 0:03:04]}  gxf6 {[%clk 0:03:02]} 9. Nd5 {[%clk 0:03:04]}  a6 {[%clk 0:02:53]} 10. Nbc7+ {[%clk 0:03:02]}  Kf8 {[%clk 0:02:52]} 11. Nxa8 {[%clk 0:03:02]}  f5 {[%clk 0:02:43]} 12. Nab6 {[%clk 0:02:55]}  fxe4 {[%clk 0:02:36]} 13. Nxc8 {[%clk 0:02:56]}  Qxc8 {[%clk 0:02:35]} 14. c3 {[%clk 0:02:55]}  Qf5 {[%clk 0:02:32]} 15. Be2 {[%clk 0:02:53]}  Rg8 {[%clk 0:02:31]} 16. g4 {[%clk 0:02:54]}  Qe6 {[%clk 0:02:22]} 17. Nxe7 {[%clk 0:02:44]}  Nxe7 {[%clk 0:02:21]} 18. Qb3 {[%clk 0:02:43]}  d5 {[%clk 0:02:19]} 19. Qxb7 {[%clk 0:02:42]}  Kg7 {[%clk 0:02:18]} 20. Qxa6 {[%clk 0:02:42]}  Qd7 {[%clk 0:02:13]} 21. g5 {[%clk 0:02:41]}  Nc6 {[%clk 0:02:11]} 22. Bb5 {[%clk 0:02:40]}  Rc8 {[%clk 0:02:09]} 23. O-O-O {[%clk 0:02:37]} 1-0


[Site "https://www.chess.com"]